bitfinex-derivatives/quotes_SOLF0:USTF0_20260207
["timestamp","ask_amount","ask_price","bid_price","bid_amount"]
[1770422400435,10.42454589,87.454,87.347,2.33435334]
[1770422400642,3.75598321,87.436,87.347,2.33435334]
[1770422400938,3.75598321,87.434,87.347,2.33435334]
[1770422401134,3.75598321,87.432,87.347,2.33435334]
[1770422401335,3.75598321,87.43,87.347,2.33435334]
[1770422401639,3.75598321,87.428,87.347,2.33435334]
[1770422401835,3.75598321,87.426,87.347,2.33435334]
[1770422402237,3.75598321,87.447,87.347,2.33435334]
[1770422402436,3.75598321,87.445,87.347,2.33435334]
[1770422402738,3.75598321,87.443,87.347,2.33435334]
[1770422402940,3.75598321,87.441,87.347,2.33435334]
[1770422403140,10.42454589,87.473,87.347,2.33435334]
[1770422403343,10.42454589,87.483,87.347,2.33435334]
[1770422403534,10.42454589,87.474,87.347,2.33435334]
[1770422403730,10.42454589,87.469,87.347,2.33435334]
[1770422404037,3.75598321,87.467,87.347,2.33435334]
[1770422404237,3.75598321,87.465,87.347,2.33435334]
[1770422404437,3.75598321,87.462,87.347,2.33435334]
[1770422404638,3.75598321,87.46,87.347,2.33435334]
[1770422404838,3.75598321,87.457,87.347,2.33435334]
[1770422405038,3.75598321,87.449,87.347,2.33435334]
[1770422405239,3.75598321,87.447,87.347,2.33435334]
[1770422405439,10.42454589,87.45,87.347,2.33435334]
[1770422405440,3.75598321,87.445,87.347,2.33435334]
[1770422405639,4.59624223,87.443,87.347,2.33435334]
[1770422405841,4.59624223,87.441,87.347,2.33435334]
[1770422406041,4.59624223,87.438,87.347,2.33435334]
[1770422406238,4.59624223,87.434,87.347,2.33435334]
[1770422406444,4.59624223,87.432,87.347,2.33435334]
[1770422406643,4.59624223,87.43,87.347,2.33435334]
[1770422406839,4.59624223,87.428,87.347,2.33435334]
[1770422407045,4.59624223,87.426,87.347,2.33435334]
[1770422407242,4.59624223,87.424,87.347,2.33435334]
[1770422407442,4.59624223,87.422,87.347,2.33435334]
[1770422407638,4.59624223,87.42,87.347,2.33435334]
[1770422407842,4.59624223,87.418,87.347,2.33435334]
[1770422408045,4.59624223,87.416,87.347,2.33435334]
[1770422409942,4.58698075,87.414,87.347,2.33435334]
[1770422417054,4.58698075,87.414,87.336,7.016e-05]
[1770422419555,4.58698075,87.412,87.336,7.016e-05]
[1770422419751,4.58698075,87.387,87.336,7.016e-05]
[1770422420359,4.58698075,87.38,87.336,7.016e-05]
[1770422422158,4.58698075,87.355,87.336,7.016e-05]
[1770422422351,4.58698075,87.353,87.233,2.16367437]
[1770422422554,4.58698075,87.351,87.233,2.16367437]
[1770422422754,4.58698075,87.349,87.233,2.16367437]
[1770422423060,4.58698075,87.318,87.233,2.16367437]
[1770422423762,4.58698075,87.316,87.233,2.16367437]
[1770422424162,4.58698075,87.306,87.233,2.16367437]
[1770422424359,4.58698075,87.306,87.185,2.22187575]
[1770422425055,4.58698075,87.306,87.199,2.22187575]
[1770422425856,4.58698075,87.304,87.199,2.22187575]
[1770422426667,4.58698075,87.303,87.199,2.22187575]
[1770422427561,4.58698075,87.283,87.199,2.22187575]
[1770422428164,4.58698075,87.278,87.199,2.22187575]
[1770422428366,4.58698075,87.278,87.124,3.00660952]
[1770422429564,4.58698075,87.278,87.125,3.03000459]
[1770422429768,4.58698075,87.261,87.126,3.03000459]
[1770422430161,4.58698075,87.244,87.126,3.03000459]
[1770422430360,4.58698075,87.242,87.124,11.6995457]
[1770422430560,4.58698075,87.23,87.123,2.35017016]
[1770422430966,4.58698075,87.176,87.123,2.35017016]
[1770422431169,4.58698075,87.175,87.123,2.35017016]
[1770422431463,4.58698075,87.171,87.123,2.35017016]
[1770422431664,4.58698075,87.169,87.086,2.97873904]
[1770422431866,4.58698075,87.167,87.0,161.045]
[1770422432068,4.58698075,87.167,86.931,75.4]
[1770422432069,4.58698075,87.166,87.045,4.5898283]
[1770422432672,4.58698075,87.153,87.045,4.5898283]
[1770422433059,4.58698075,87.126,87.045,4.5898283]
[1770422433261,4.58698075,87.124,87.001,4.5898283]
[1770422433668,10.3383,87.123,87.002,10.3526]
[1770422433866,4.58698075,87.122,87.003,4.5898283]
[1770422434269,4.58698075,87.119,87.003,4.5898283]
[1770422434669,4.58698075,87.117,86.992,4.5898283]
[1770422434868,10.3425,87.087,86.97,10.3563]
[1770422435077,4.58698075,87.085,86.912,4.5898283]
[1770422435269,4.58698075,87.069,86.949,4.5898283]
[1770422435578,4.92721068,87.11,86.949,4.5898283]
[1770422435977,4.92721068,87.11,86.941,11.67123059]
[1770422435978,4.92721068,87.11,87.002,4.72168174]
[1770422437577,4.92721068,87.11,87.004,4.72168174]
[1770422438282,4.92721068,87.11,87.011,4.72168174]
[1770422439169,4.92721068,87.11,86.942,4.72168174]
[1770422439982,4.92721068,87.099,86.942,4.72168174]
[1770422440179,4.92721068,87.088,86.942,4.72168174]
[1770422440478,4.92721068,87.056,86.911,4.72168174]
[1770422440884,4.92721068,87.035,86.765,4.72168174]
[1770422441080,4.92721068,87.003,86.811,4.72168174]
[1770422441275,4.92721068,86.965,86.811,4.72168174]
[1770422441983,4.92721068,86.939,86.811,4.72168174]
[1770422443087,4.92721068,86.937,86.811,4.72168174]
[1770422443380,4.92721068,86.937,86.641,161.7122]
[1770422443381,161.2127,86.91,86.744,4.72168174]
[1770422443574,4.92721068,86.886,86.744,4.72168174]
[1770422444371,4.92721068,86.879,86.744,4.72168174]
[1770422444572,4.92721068,86.856,86.698,4.72168174]
[1770422444880,4.92721068,86.838,86.698,4.72168174]
[1770422445979,4.92721068,86.838,86.626,34.32]
[1770422445980,4.92721068,86.838,86.701,4.72168174]
[1770422446171,4.92721068,86.915,86.703,4.72168174]
[1770422446375,160.84,86.916,86.707,4.72168174]
[1770422446376,4.92721068,86.891,86.707,4.72168174]
[1770422446574,4.92721068,86.891,86.711,4.72168174]
[1770422446872,4.92721068,86.891,86.649,161.6975]
[1770422446873,4.92721068,86.891,86.747,4.72168174]
[1770422447072,4.92721068,86.891,86.753,4.72168174]
[1770422447273,4.92721068,86.981,86.769,4.72168174]
[1770422447487,4.92721068,86.969,86.799,4.72168174]
[1770422447784,4.92721068,86.969,86.816,4.72168174]
[1770422448083,4.92721068,87.054,86.85,4.72168174]
[1770422448989,160.92,87.071,86.817,160.94]
[1770422448990,4.92721068,87.022,86.87,4.72168174]
[1770422449685,4.92721068,87.022,86.874,4.72168174]
[1770422450078,4.92721068,87.022,86.881,4.72168174]
[1770422450686,4.92721068,87.022,86.883,4.72168174]
[1770422451491,4.92721068,87.022,86.889,4.72168174]
[1770422452785,4.92721068,87.015,86.889,4.72168174]
[1770422453682,4.92721068,87.055,86.911,4.72168174]
[1770422454283,10.3442,87.073,86.948,4.72168174]
[1770422454483,160.8824,87.089,86.948,4.72168174]
[1770422454781,160.96,87.108,86.948,4.72168174]
[1770422454782,10.3483,87.039,86.948,4.72168174]
[1770422454987,4.92721068,87.07,86.948,4.72168174]
[1770422456687,4.92721068,87.1,86.956,4.72168174]
[1770422456888,4.92721068,87.092,86.956,4.72168174]
[1770422457283,10.3447,87.069,86.956,4.72168174]
[1770422457983,10.3447,87.069,86.963,4.72168174]
[1770422459085,4.92721068,87.068,86.963,4.72168174]
[1770422459286,4.92721068,87.03,86.939,4.72168174]
[1770422459895,10.3542,86.989,86.889,4.72168174]
[1770422460086,4.92721068,87.009,86.889,4.72168174]
[1770422460288,10.3467,87.053,86.942,4.72168174]
[1770422460582,4.92721068,87.058,86.942,4.72168174]
[1770422460785,4.92721068,87.093,86.942,4.72168174]
[1770422461093,10.3466,87.053,86.971,4.72168174]
[1770422461283,4.92721068,87.093,86.971,4.72168174]
[1770422461484,10.3448,87.068,86.971,4.72168174]
[1770422461993,4.92721068,87.117,86.971,4.72168174]
[1770422462190,4.92721068,87.113,86.992,4.72168174]
[1770422462389,4.92721068,87.105,86.992,4.72168174]
[1770422462594,160.92,87.158,86.992,4.72168174]
[1770422462595,4.92721068,87.099,86.992,4.72168174]
[1770422462788,10.3457,87.061,86.992,4.72168174]
[1770422462988,4.92721068,87.099,86.992,4.72168174]
[1770422463998,4.92721068,87.078,86.992,4.72168174]
[1770422464482,10.3476,87.045,86.992,4.72168174]
[1770422465694,10.3459,87.059,86.992,4.72168174]
[1770422466391,10.3461,87.057,86.992,4.72168174]
[1770422466597,5.50390478,87.056,86.97,7.47773119]
[1770422466996,10.3477,87.044,86.97,7.47773119]
[1770422467197,10.3477,87.044,86.971,5.47813341]
[1770422467393,15.85160478,87.044,86.971,5.47813341]
[1770422467598,5.97632516,87.041,86.971,5.47813341]
[1770422467894,5.97632516,87.041,86.97,1.99959778]
[1770422468291,10.3515,87.012,86.97,1.99959778]
[1770422468488,5.97632516,87.014,86.97,1.99959778]
[1770422468694,5.97632516,87.014,86.794,645.7072]
[1770422468695,5.97632516,87.014,86.849,5.74181709]
[1770422469003,5.97632516,86.975,86.875,5.74181709]
[1770422469701,5.97632516,86.975,86.891,5.74181709]
[1770422470092,16.33242516,86.973,86.891,5.74181709]
[1770422470294,5.97632516,86.973,86.891,5.74181709]
[1770422471395,5.97632516,86.968,86.854,5.74181709]
[1770422471900,5.97632516,86.965,86.882,2.002002]
[1770422472396,5.97632516,86.919,86.882,2e-06]
[1770422472601,5.97632516,86.919,86.81,37.02762156]
[1770422473293,5.97632516,86.882,86.79,31.28580447]
[1770422473699,10.3686,86.868,86.784,5.74181709]
[1770422473894,5.97632516,86.882,86.791,5.74181709]
[1770422474198,5.97632516,86.882,86.636,485.162]
[1770422474199,10.3736,86.827,86.767,5.74181709]
[1770422474395,5.97632516,86.826,86.745,5.74181709]
[1770422474599,5.97632516,86.826,86.73,31.28580447]
[1770422474799,5.97632516,86.807,86.719,5.74181709]
[1770422475106,5.97632516,86.807,86.73,31.28580447]
[1770422475400,5.97632516,86.807,86.578,26.83462979]
[1770422475401,5.97632516,86.777,86.68,31.28580447]
[1770422475701,5.97632516,86.777,86.72,2.00583884]
[1770422476104,5.97632516,86.777,86.72,3.884e-05]
[1770422476294,5.97632516,86.777,86.7,31.28580447]
[1770422476500,5.97632516,86.801,86.701,5.74181709]
[1770422476702,5.97632516,86.801,86.72,31.28580447]
[1770422477105,5.97632516,86.801,86.721,5.74181709]
[1770422477502,5.97632516,86.784,86.7,31.28580447]
[1770422478203,5.97632516,86.784,86.701,5.74181709]
[1770422479007,161.2061,86.914,86.697,2.49547688]
[1770422479008,5.97632516,86.849,86.741,5.74181709]
[1770422479205,5.97632516,86.849,86.76,31.28580447]
[1770422479401,5.97632516,86.849,86.761,5.74181709]
[1770422480206,5.97632516,86.846,86.761,5.74181709]
[1770422480405,5.97632516,86.846,86.74,31.28580447]
[1770422480910,5.97632516,86.846,86.741,5.74181709]
[1770422481113,5.97632516,86.844,86.741,5.74181709]
[1770422481610,5.97632516,86.807,86.72,2.00533026]
[1770422482098,16.35482516,86.786,86.72,2.00533026]
[1770422482301,5.97632516,86.785,86.72,2.00533026]
[1770422483297,5.97632516,86.807,86.721,5.74181709]
[1770422483907,5.97632516,86.807,86.72,33.29113473]
[1770422483908,5.97632516,86.807,86.723,5.74181709]
[1770422484110,5.97632516,86.83,86.741,5.74181709]
[1770422484809,5.97632516,86.83,86.76,31.28580447]
[1770422485314,5.97632516,86.853,86.761,5.74181709]
[1770422485606,5.97632516,86.877,86.8,31.28580447]
[1770422486403,5.97632516,86.877,86.72,2.00533026]
[1770422486404,5.97632516,86.939,86.821,5.74181709]
[1770422486800,5.97632516,86.939,86.84,31.28580447]
[1770422487002,5.97632516,86.923,86.84,31.28580447]
[1770422487607,5.97632516,86.918,86.821,5.74181709]
[1770422488307,5.97632516,86.907,86.821,5.74181709]
[1770422489514,5.97632516,86.892,86.8,31.28580447]
[1770422490015,5.97632516,86.882,86.797,5.74181709]
[1770422490413,5.97632516,86.882,86.751,5.74181709]
[1770422490610,5.97632516,86.859,86.73,31.28580447]
[1770422490815,5.97632516,86.859,86.731,5.74181709]
[1770422491010,5.97632516,86.832,86.731,16.12671709]
[1770422491212,5.97632516,86.832,86.732,5.74181709]
[1770422492013,5.97632516,86.832,86.737,5.74181709]
[1770422492507,5.97632516,86.83,86.737,5.74181709]
[1770422493110,5.97632516,86.82,86.737,5.74181709]
[1770422493307,5.97632516,86.82,86.719,10.3864]
[1770422493510,5.97632516,86.82,86.697,2.49547688]
[1770422493511,5.97632516,86.815,86.697,2.49547688]
[1770422493811,5.97632516,86.779,86.697,2.49547688]
[1770422494316,55.0565,86.872,86.697,2.49547688]
[1770422494317,5.97632516,86.759,86.697,2.49547688]
[1770422494905,5.97632516,86.75,86.697,2.49547688]
[1770422495611,6.67770393,86.748,86.697,2.49547688]
[1770422495808,6.67770393,86.748,86.697,7.688e-05]
[1770422496319,6.67770393,86.739,86.697,7.688e-05]
[1770422496720,6.67770393,86.721,86.697,7.688e-05]
[1770422497216,6.67770393,86.713,86.697,7.688e-05]
[1770422497516,6.67770393,86.713,86.534,161.9124]
[1770422497517,6.67770393,86.713,86.599,6.13219368]
[1770422497719,6.67770393,86.713,86.59,31.28580447]
[1770422497720,10.3885,86.702,86.603,6.13219368]
[1770422497913,6.67770393,86.701,86.611,6.13219368]
[1770422498413,6.67770393,86.686,86.611,6.13219368]
[1770422499015,6.67770393,86.686,86.581,6.13219368]
[1770422499611,10.3905,86.685,86.581,6.13219368]
[1770422499811,10.3905,86.685,86.538,161.26]
[1770422499812,6.67770393,86.729,86.601,6.13219368]
[1770422500011,6.67770393,86.729,86.641,6.13219368]
[1770422500216,6.67770393,86.751,86.661,6.13219368]
[1770422500817,6.67770393,86.751,86.651,2.00703616]
[1770422500818,6.67770393,86.775,86.681,6.13219368]
[1770422501322,6.67770393,86.775,86.7,31.28580447]
[1770422501516,31.28580447,86.83,86.701,6.13219368]
[1770422501716,6.67770393,86.829,86.701,6.13219368]
[1770422502012,6.67770393,86.801,86.701,6.13219368]
[1770422502210,6.67770393,86.801,86.72,37.41799815]
[1770422502723,6.67770393,86.801,86.721,6.13219368]
[1770422502923,6.67770393,86.797,86.701,6.13219368]
[1770422503422,10.3798,86.775,86.701,6.13219368]
[1770422503624,6.67770393,86.797,86.701,6.13219368]
[1770422504223,6.67770393,86.775,86.677,6.13219368]
[1770422505221,6.67770393,86.755,86.677,6.13219368]
[1770422505719,10.386,86.723,86.652,6.13219368]
[1770422505921,6.67770393,86.722,86.651,2.00703616]
[1770422506917,6.67770393,86.756,86.661,6.13219368]
[1770422507418,10.3775,86.794,86.711,6.13219368]
[1770422508218,10.3789,86.782,86.711,6.13219368]
[1770422508416,6.67770393,86.797,86.688,6.13219368]
[1770422508717,10.3822,86.755,86.688,6.13219368]
[1770422510526,6.67770393,86.766,86.688,6.13219368]
[1770422511236,10.3818,86.758,86.688,6.13219368]
[1770422511830,10.3831,86.747,86.688,6.13219368]
[1770422513223,10.3814,86.761,86.688,6.13219368]
[1770422513627,10.3814,86.761,86.701,6.13219368]
[1770422513822,10.3796,86.776,86.701,6.13219368]
[1770422514026,6.67770393,86.789,86.701,6.13219368]
[1770422514930,6.67770393,86.789,86.651,2.00703616]
[1770422514931,6.67770393,86.831,86.721,6.13219368]
[1770422515136,6.67770393,86.831,86.76,31.28580447]
[1770422515430,6.67770393,86.831,86.741,6.13219368]
[1770422515930,31.28580447,86.87,86.741,9.368e-05]
[1770422515931,6.67770393,86.808,86.741,9.368e-05]
[1770422516228,6.67770393,86.808,86.72,31.28580447]
[1770422516431,10.3795,86.778,86.72,31.28580447]
[1770422517333,6.67770393,86.808,86.72,31.28580447]
[1770422518033,10.3782,86.788,86.721,6.13219368]
[1770422518534,6.67770393,86.808,86.721,6.13219368]
[1770422518730,9.85979598,86.893,86.651,2.00703616]
[1770422518731,6.67770393,86.837,86.741,6.13219368]
[1770422519125,6.67770393,86.829,86.741,6.13219368]
[1770422520528,10.3775,86.794,86.741,6.13219368]
[1770422520938,6.67770393,86.829,86.741,6.13219368]
[1770422521330,6.67770393,86.859,86.761,6.13219368]
[1770422521828,6.67770393,86.838,86.75,31.28580447]
[1770422522035,6.67770393,86.838,86.739,6.13219368]
[1770422522931,10.3782,86.788,86.739,6.13219368]
[1770422523326,10.3769,86.799,86.739,6.13219368]
[1770422523529,6.67770393,86.84,86.77,31.28580447]
[1770422523739,9.85979598,86.937,86.77,31.28580447]
[1770422523740,8.08999422,86.89,86.77,31.28580447]
[1770422524043,8.08999422,86.885,86.79,31.28580447]
[1770422524734,8.08999422,86.885,86.81,31.28580447]
[1770422525133,20.7227,86.929,86.81,31.28580447]
[1770422525134,8.22874511,86.928,86.81,31.28580447]
[1770422525328,8.22874511,86.928,86.83,31.28580447]
[1770422525529,8.22874511,86.928,86.831,34.61]
[1770422525733,8.22784164,86.95,86.85,31.28580447]
[1770422525935,8.22784164,86.95,86.87,31.28580447]
[1770422526136,10.36,86.94,86.87,31.28580447]
[1770422526337,8.22784164,86.95,86.87,31.28580447]
[1770422526639,8.22784164,86.95,86.838,34.61]
[1770422526640,8.22784164,86.95,86.85,31.28580447]
[1770422526835,8.22784164,86.95,86.87,31.28580447]
[1770422527041,20.6988,87.03,86.89,31.28580447]
[1770422527042,8.19708054,87.008,86.89,31.28580447]
[1770422527245,8.19708054,87.002,86.89,31.28580447]
[1770422527435,8.19607556,86.976,86.89,31.28580447]
[1770422527635,8.19607556,86.999,86.91,31.28580447]
[1770422527831,8.19607556,86.999,86.89,31.28580447]
[1770422528032,8.19607556,86.999,86.828,161.32]
[1770422528033,8.19607556,86.999,86.91,31.28580447]
[1770422529039,10.3534,86.996,86.91,31.28580447]
[1770422529238,10.3534,86.996,86.93,31.28580447]
[1770422529836,8.04414065,87.069,86.97,31.28580447]
[1770422530041,8.04414065,87.069,87.01,31.28580447]
[1770422530236,8.04414065,87.069,86.99,31.28580447]
[1770422530441,160.8361,87.114,86.99,31.28580447]
[1770422530636,8.05086043,87.113,87.01,31.28580447]
[1770422531046,8.05086043,87.113,87.03,31.28580447]
[1770422531341,8.05086043,87.113,86.9,31.28580447]
[1770422531342,160.8991,87.079,86.96,31.28580447]
[1770422531550,10.3481,87.04,86.96,20.80713447]
[1770422531736,8.04934562,87.047,86.94,20.80713447]
[1770422531935,10.3554,86.979,86.9,20.80713447]
[1770422532136,8.04934562,86.978,86.8,20.80713447]
[1770422532336,8.04934562,86.978,86.88,20.80713447]
[1770422532544,160.9635,87.045,86.8,20.80713447]
[1770422532545,7.99293499,86.961,86.86,20.80713447]
[1770422532942,7.99293499,86.961,86.8,20.80713447]
[1770422532943,7.99293499,86.961,86.88,20.80713447]
[1770422533145,7.99293499,86.959,86.78,161.18]
[1770422533450,160.996,87.027,86.85,20.80713447]
[1770422533451,7.99123948,86.937,86.85,20.80713447]
[1770422534046,7.99123948,86.931,86.85,20.80713447]
[1770422534544,10.3615,86.928,86.85,20.80713447]
[1770422534747,7.99123948,86.931,86.79,161.4343]
[1770422535047,7.99123948,86.931,86.84,20.80713447]
[1770422535344,20.80713447,86.97,86.82,20.80713447]
[1770422535345,7.79499814,86.914,86.82,20.80713447]
[1770422535749,7.79499814,86.914,86.78,161.18]
[1770422535750,7.79259853,86.894,86.8,20.80713447]
[1770422536648,161.0758,86.984,86.78,161.18]
[1770422536649,161.1229,86.959,86.84,20.80713447]
[1770422536840,7.95211218,86.953,86.84,20.80713447]
[1770422537853,10.3621,86.923,86.84,20.80713447]
[1770422538553,18.24988827,86.923,86.84,20.80713447]
[1770422538753,18.25028827,86.92,86.84,20.80713447]
[1770422538955,161.14,87.014,86.86,20.80713447]
[1770422538956,7.88778827,86.975,86.86,20.80713447]
[1770422539342,7.88778827,86.975,86.8,20.80713447]
[1770422539343,10.358,86.958,86.88,20.80713447]
[1770422539954,161.14,87.014,86.9,20.80713447]
[1770422539955,7.88586349,86.972,86.9,20.80713447]
[1770422540348,10.3587,86.952,86.8,20.80713447]
[1770422540554,7.93146377,86.951,86.86,20.80713447]
[1770422540955,7.93146377,86.951,86.88,20.80713447]
[1770422541359,7.92975393,87.002,86.88,20.80713447]
[1770422541559,7.92975393,86.971,86.88,20.80713447]
[1770422542462,7.92190406,86.957,86.86,20.80713447]
[1770422542962,7.92190406,86.951,86.86,20.80713447]
[1770422543662,10.3617,86.927,86.84,20.80713447]
[1770422544252,10.3628,86.917,86.84,20.80713447]
[1770422544450,10.3628,86.917,86.82,20.80713447]
[1770422544654,7.943107,86.916,86.82,20.80713447]
[1770422545767,10.3636,86.91,86.82,20.80713447]
[1770422546156,7.94153011,86.909,86.79,20.80713447]
[1770422546356,7.94153011,86.875,86.774,0.03594163]
[1770422546772,7.9228322,86.857,86.774,0.03594163]
[1770422547277,7.9228322,86.857,86.751,0.07333745]
[1770422547466,7.92123431,86.851,86.751,0.07333745]
[1770422547974,7.92123431,86.851,86.771,0.12683299]
[1770422548362,7.92123431,86.851,86.75,20.80713447]
[1770422548676,7.95049249,86.849,86.751,0.11798795]
[1770422549668,10.3732,86.83,86.751,0.11798795]
[1770422549869,7.94902107,86.829,86.751,0.11798795]
[1770422550082,7.94902107,86.829,86.731,0.17023686]
[1770422550267,20.80713447,86.87,86.731,0.17023686]
[1770422550268,7.93707709,86.826,86.731,0.17023686]
[1770422551274,161.1929,86.921,86.651,163.18703616]
[1770422551275,7.93561434,86.889,86.751,0.24268514]
[1770422551775,7.93561434,86.889,86.771,0.29357972]
[1770422551973,7.93561434,86.863,86.771,0.29357972]
[1770422552768,7.92155273,86.929,86.791,0.36912652]
[1770422552966,7.92155273,86.927,86.791,0.36912652]
[1770422553176,7.92155273,86.925,86.791,0.36912652]
[1770422553581,7.92008591,86.878,86.791,0.36912652]
[1770422554079,7.92008591,86.878,86.794,0.41896579]
[1770422554477,7.92008591,86.878,86.77,21.17203667]
[1770422554678,7.92008591,86.878,86.771,0.3649022]
[1770422554880,7.97029687,86.862,86.773,0.3649022]
[1770422555469,7.97029687,86.862,86.775,0.41328711]
[1770422556879,7.97029687,86.862,86.778,0.60076768]
[1770422557983,7.97029687,86.862,86.791,0.64743676]
[1770422558284,8.19244811,86.884,86.791,0.64743676]
[1770422558480,8.19244811,86.884,86.805,10.3761]
[1770422558779,8.19244811,86.884,86.81,20.80713447]
[1770422559385,8.19244811,86.884,86.811,0.68534431]
[1770422559587,8.19244811,86.906,86.831,0.68534431]
[1770422560480,8.19244811,86.906,86.835,10.3725]
[1770422560681,8.19244811,86.928,86.85,20.80713447]
[1770422561075,8.19244811,86.928,86.85,21.55550796]
[1770422561274,34.61,87.015,86.8,20.80713447]
[1770422561275,8.19244811,86.95,86.87,20.80713447]
[1770422562285,8.19244811,86.95,86.85,20.80713447]
[1770422562483,20.80713447,86.99,86.845,0.79272068]
[1770422562484,8.19244811,86.923,86.845,0.79272068]
[1770422562786,8.19244811,86.923,86.83,20.80713447]
[1770422562979,8.19244811,86.923,86.79,20.80713447]
[1770422563178,8.19244811,86.872,86.78,11.21719178]
[1770422563780,7.69244811,86.872,86.78,11.21719178]
[1770422563982,161.177,86.929,86.791,1.38152967]
[1770422564187,161.1813,86.927,86.791,1.38152967]
[1770422564381,20.80713447,86.93,86.791,1.38152967]
[1770422564690,161.2053,86.914,86.791,1.38152967]
[1770422564984,161.2115,86.911,86.791,1.38152967]
[1770422565182,161.201,86.916,86.791,1.38152967]
[1770422565484,20.7244,86.922,86.791,1.38152967]
[1770422565788,8.19244811,86.921,86.791,1.38152967]
[1770422566288,8.19244811,86.888,86.811,1.68616077]
[1770422566787,8.19244811,86.888,86.83,20.80713447]
[1770422567287,8.19244811,86.888,86.811,1.68616077]
[1770422568890,8.19244811,86.885,86.801,10.3765]
[1770422569185,8.19244811,86.885,86.791,1.68034451]
[1770422569778,161.1728,86.932,86.794,1.72222125]
[1770422569779,8.19244811,86.883,86.794,1.72222125]
[1770422571686,8.19244811,86.881,86.796,1.79995614]
[1770422572780,8.19244811,86.879,86.796,1.79995614]
[1770422573382,8.19244811,86.877,86.796,1.79995614]
[1770422573983,8.19244811,86.877,86.811,1.89973202]
[1770422575386,8.19244811,86.877,86.82,8.18351654]
[1770422576696,8.19244811,86.875,86.82,8.18351654]
[1770422576892,8.19244811,86.875,86.79,8.18351654]
[1770422577096,20.7226,86.93,86.708,20.7755]
[1770422577097,8.19244811,86.846,86.78,8.18351654]
[1770422577491,8.19244811,86.846,86.751,2.10310462]
[1770422577690,8.19244811,86.846,86.73,20.90722456]
[1770422577997,8.19244811,86.807,86.73,20.90722456]
[1770422578688,8.19244811,86.8,86.73,20.90722456]
[1770422579498,8.19244811,86.8,86.729,2.10310462]
[1770422579894,8.19244811,86.8,86.71,20.90722456]
[1770422580191,8.19244811,86.799,86.707,2.14959173]
[1770422580703,8.19244811,86.797,86.707,2.14959173]
[1770422581295,8.19244811,86.797,86.712,10.3872]
[1770422581501,8.19244811,86.797,86.731,2.24932792]
[1770422583295,8.19244811,86.797,86.73,20.90722456]
[1770422583502,8.19244811,86.795,86.711,2.15676361]
[1770422583701,8.19244811,86.795,86.731,2.15676361]
[1770422585500,8.19244811,86.795,86.73,20.90722456]
[1770422585702,8.51963259,86.791,86.69,8.72738784]
[1770422585901,8.51963259,86.791,86.711,8.72738784]
[1770422586304,10.378,86.79,86.711,8.72738784]
[1770422586506,8.51963259,86.789,86.711,8.72738784]
[1770422587609,8.51963259,86.787,86.711,8.72738784]
[1770422589201,8.51963259,86.787,86.689,2.00544582]
[1770422590005,8.1798976,86.772,86.689,2.00544582]
[1770422590604,8.1798976,86.772,86.691,10.3897]
[1770422591308,8.1798976,86.772,86.692,8.36948078]
[1770422591607,8.1798976,86.772,86.689,2.00544582]
[1770422591608,8.1798976,86.794,86.721,8.36948078]
[1770422591800,8.1798976,86.794,86.731,8.36948078]
[1770422592808,8.1798976,86.814,86.747,8.36948078]
[1770422593010,174.83364302,86.9,86.702,20.7769]
[1770422593011,8.1798976,86.869,86.761,8.36948078]
[1770422593407,8.1798976,86.842,86.761,8.36948078]
[1770422593607,8.1798976,86.842,86.699,161.6038]
[1770422593608,8.1798976,86.842,86.74,31.39374578]
[1770422593808,8.1798976,86.822,86.741,10.3838]
[1770422594111,8.1798976,86.822,86.737,8.36948078]
[1770422594507,8.1798976,86.82,86.73,10.3851]
[1770422594701,8.1798976,86.82,86.72,31.39374578]
[1770422595315,8.1798976,86.81,86.724,10.3857]
[1770422595904,8.1798976,86.81,86.72,39.76322656]
[1770422595905,8.1798976,86.81,86.725,8.36948078]
[1770422596716,20.7362,86.873,86.725,8.36948078]
[1770422596717,8.1798976,86.809,86.725,8.36948078]
[1770422597514,20.7362,86.873,86.672,20.7839]
[1770422597515,8.1798976,86.807,86.73,8.19972884]
[1770422598013,8.1798976,86.799,86.71,8.19972884]
[1770422598518,10.3777,86.792,86.71,8.19972884]
[1770422598718,8.1798976,86.791,86.71,8.19972884]
[1770422598919,8.1798976,86.791,86.73,8.19972884]
[1770422599116,8.1798976,86.791,86.714,8.36948078]
[1770422599322,8.1798976,86.791,86.73,8.19972884]
[1770422600522,161.36,86.874,86.71,8.19972884]
[1770422600523,8.1798976,86.812,86.75,8.19972884]
[1770422601017,8.1798976,86.812,86.74,8.19972884]
[1770422601728,8.1798976,86.808,86.74,8.19972884]
[1770422602824,8.1798976,86.808,86.741,8.36948078]
[1770422603221,8.1798976,86.808,86.76,8.19972884]
[1770422604135,8.1798976,86.859,86.76,8.19972884]
[1770422605225,8.1798976,86.84,86.761,10.3814]
[1770422606630,8.1798976,86.84,86.78,8.19972884]
[1770422607527,8.1798976,86.86,86.8,8.19972884]
[1770422608333,8.1798976,86.86,86.803,10.3763]
[1770422609734,10.14127661,86.942,86.76,8.19972884]